Cogmind - Beta 14 @@@ ROGUE MODE // 2025.05.04 @ 14:51:52 Player: mathSq Result: Destroyed by G-67 Veteran with Plasma Rifle Performance ------------- Evolutions (7) 3500 Regions Visited (17) 3400 Robots Destroyed (280) 1400 Value Destroyed (10642) 10642 Prototype IDs (30) 600 Alien Tech Used (0) 0 Bonus (4173) 4173 TOTAL SCORE: 23715 Bonus ------- High Alert Combat Kills 1020 Follower Combat Kills 1135 Met Imprinter 300 Met R17 at Cetus 500 Met R17 at Research 2000 Friendly Fire -782 Cogmind --------- Core Integrity 0/1300 Matter 290/300 Energy 4/100 System Corruption 0% Temperature Cool (0) Movement Core (100) Ox1 Location -3/Research Parts ------- > --- POWER (2) -------- (None) > --- PROPULSION (6) --- (None) > --- UTILITY (10) ----- Advanced Targeting Computer Graphene Brace > --- WEAPON (3) ------- Plasma Lance > --- INVENTORY (5) ---- Medium Treads Compact Wheel Energy Well (0) Seismic Detector Peak State ------------ > --- POWER ------------ Quantum Reactor Quantum Reactor > --- PROPULSION ------- Centrium Heavy Treads Centrium Heavy Treads Centrium Heavy Treads > --- UTILITY ---------- Advanced Cryofiber Web Advanced Heat Sink Huge Storage Unit Advanced Targeting Computer Quantum Capacitor Centrium Medium Armor Plating Hacking Suite Improved Hacking Suite Advanced Recalibrator > --- WEAPON ----------- Advanced Variable Charge Gun Quantum Rifle Advanced KE Penetrator > --- INVENTORY -------- Quantum Reactor Medium Treads Medium Treads Medium Treads Medium Treads Armored Medium Treads Centrium Heavy Treads Wheel Centrium Wheel Energy Well Large Matter Pod Improved Terrain Scanner Seismic Detector Improved Medium Armor Plating Improved Medium Armor Plating Graphene Brace Improved Thermal Shield Advanced Thermal Shield Gatling Laser Quantum Rifle Long-range Proton Cannon Tiamat Missile Launcher Improved Datajack Plasma Sword [Rating: 164] Favorites ----------- Power Heavy Deuterium Engine Engine Heavy Deuterium Engine Power Core Neutrino Core Reactor Quantum Reactor Propulsion Light Treads Treads Light Treads Wheel Wheel Utility Huge Storage Unit Device Seismic Detector Storage Huge Storage Unit Processor Advanced Targeting Computer Hackware Hacking Suite Protection Powered Armor Weapon Heavy Ion Cannon Energy Gun Particle Gun Energy Cannon Heavy Ion Cannon Ballistic Gun Advanced KE Penetrator Ballistic Cannon Antimatter Cannon Launcher Proton Missile Launcher Slashing Weapon Power Sword Special Melee Weapon Improved Datajack Build | -11 -10 -9 -9 -8 -8 -7 -7 -7 -7 -6 -6 -5 -5 -5 -5 -4 -3 ------- Run | Yrd Mat Mat Min Mat Sto Fac Low Low Zio Pro Fac Fac Ext Cet Arc Fac Res Slots Evolved 14 | . . 2 . 2 . 2 . . . . 2 2 . . . 2 2 Power 1 | . . . . . . . . . . . 1 . . . . . . Propulsion 4 | . . 1 . . . 1 . . . . . 1 . . . 1 . Utility 8 | . . . . 2 . 1 . . . . 1 1 . . . 1 2 Weapon 1 | . . 1 . . . . . . . . . . . . . . . Parts Attached 362 | 7 3 29 3 15 29 43 7 2 9 3 41 36 49 11 5 24 46 Power 26 | 1 1 4 . . 2 2 . . . . 5 . 4 3 . . 4 Engine 17 | 1 1 4 . . 2 2 . . . . 4 . 2 . . . 1 Core 4 | . . . . . . . . . . . 1 . 2 1 . . . Reactor 5 | . . . . . . . . . . . . . . 2 . . 3 Propulsion 58 | 2 . 5 . 1 3 6 4 1 . 1 9 6 9 2 . 1 8 Treads 38 | 2 . 2 . 1 2 5 4 . . 1 7 1 5 2 . 1 5 Leg . | . . . . . . . . . . . . . . . . . . Wheel 20 | . . 3 . . 1 1 . 1 . . 2 5 4 . . . 3 Hover . | . . . . . . . . . . . . . . . . . . Flight . | . . . . . . . . . . . . . . . . . . Utility 191 | 2 2 10 3 11 24 29 1 1 2 1 20 21 20 1 3 14 26 Device 128 | 1 1 9 3 9 23 19 1 . . 1 9 11 9 . 2 8 22 Storage 6 | 1 1 1 . . . 1 . . . . 1 1 . . . . . Processor 3 | . . . . . . . . . 1 . 1 1 . . . . . Hackware 3 | . . . . . . 2 . . . . . . . . . 1 . Protection 51 | . . . . 2 1 7 . 1 1 . 9 8 11 1 1 5 4 Artifact . | . . . . . . . . . . . . . . . . . . Weapon 87 | 2 . 10 . 3 . 6 2 . 7 1 7 9 16 5 2 9 8 Energy Gun 20 | 1 . 4 . . . . . . . . 1 1 6 . 1 3 3 Energy Cannon 27 | . . 1 . 3 . 5 1 . 5 1 3 5 1 . . 1 1 Ballistic Gun 22 | 1 . 4 . . . . . . . . 3 . 4 5 1 4 . Ballistic Cannon 2 | . . . . . . . . . . . . 2 . . . . . Launcher 8 | . . . . . . 1 1 . 1 . . 1 3 . . . 1 Special Weapon . | . . . . . . . . . . . . . . . . . . Impact Weapon . | . . . . . . . . . . . . . . . . . . Slashing Weapon 5 | . . 1 . . . . . . 1 . . . 1 . . 1 1 Piercing Weapon 1 | . . . . . . . . . . . . . . . . . 1 Special Melee Weapon 2 | . . . . . . . . . . . . . 1 . . . 1 Unidentified Prototypes 16 | . . 2 . . 1 3 . . . . 1 4 . 3 1 1 . Corrupted Parts 4 | . . . . . . . 1 . . 1 1 . 1 . . . . System Corruption 24 | . . . . . . . 4 . . 10 8 . 2 . . . . Parts Lost 111 | . 1 5 . . 2 4 1 . . . 22 4 28 . . 7 37 Power 12 | . 1 . . . . . . . . . 2 . 4 . . . 5 Propulsion 34 | . . 3 . . . 2 1 . . . 8 1 8 . . . 11 Utility 37 | . . 1 . . 2 1 . . . . 7 2 8 . . 4 12 Weapon 28 | . . 1 . . . 1 . . . . 5 1 8 . . 3 9 Highest Loss Streak 26 | . 1 2 . . 1 2 1 . . . 6 3 18 . . 4 26 To Critical Strikes 2 | . . . . . . . . . . . 2 . . . . . . Average Slot Usage (%) 94 | . 100 99 100 99 99 95 99 95 89 92 92 99 93 90 85 80 79 Engine 7 | . 14 11 11 9 8 6 7 7 7 7 8 11 5 1 . . . Reactor 1 | . . . . . . . . . . . . . . 7 11 10 8 Treads 17 | . 28 22 22 18 18 18 23 18 15 15 14 7 15 18 17 15 13 Wheel 7 | . . 11 11 9 8 11 7 7 7 7 6 20 9 1 . . 1 Device 12 | . 14 11 11 18 18 13 15 11 7 14 9 15 11 11 12 10 21 Storage 7 | . 14 11 11 9 9 7 7 7 7 7 6 5 5 5 5 5 4 Processor 1 | . . . . . . . . . . . . 5 5 5 5 5 4 Hackware 6 | . . . . . . 6 15 15 15 15 13 9 5 5 5 9 8 Protection 4 | . . . . 8 8 5 . 3 6 . 8 3 9 11 7 7 2 Energy Gun 4 | . 14 19 11 1 . . . . . . . . 1 . . 2 8 Energy Cannon 11 | . . 2 11 24 27 22 22 23 20 15 11 10 3 . . . . Ballistic Gun 5 | . 14 11 11 1 . . . . . . 5 4 6 17 17 12 . Peak Build Rating 164 | 7 8 20 22 35 36 47 46 49 50 49 60 65 73 125 126 150 164 Average Rating 52 | 5 7 16 20 32 34 43 42 44 47 46 50 59 62 108 122 141 143 On Entrance 51 | . 7 8 20 21 35 35 42 41 49 49 46 49 61 73 125 119 143 Naked Turns . | . . . . . . . . . . . . . . . . . . Heaviest Build 169 | 14 29 99 99 125 125 136 118 127 127 126 139 136 145 158 159 160 169 Greatest Support 240 | 40 40 40 12 12 20 63 60 28 28 28 88 46 92 183 183 240 240 Greatest Overweight (x) 14 | . . 9 8 10 10 10 9 9 4 4 8 3 14 1 . . 5 Average Overweight (x) 4 | . . 8 8 9 9 5 5 6 3 4 4 2 6 . . . . Largest Inventory Capacity 25 | 8 15 25 25 25 25 25 25 25 25 25 25 25 25 25 25 25 25 Average Capacity 24 | 7 11 24 25 25 25 25 25 25 25 25 25 25 25 25 25 25 24 Most Carried 25 | 6 14 25 25 25 25 25 25 25 25 25 25 25 25 25 25 25 25 Average Carried 23 | 4 9 23 24 24 24 24 24 24 25 24 21 23 21 24 24 24 23 Final Capacity 25 | 8 15 25 25 25 25 25 25 25 25 25 25 25 25 25 25 25 5 Final Carried 25 | 6 14 25 25 25 25 23 25 25 25 25 25 25 25 25 25 25 4 Class Distribution -------------------- 17% | Scavenger-Gunner 14% | Tank 13% | Scavenger-Mutant 13% | Gunner 12% | Hacker-Tank 10% | Hacker-Gunner 8% | Scavenger-Tank 8% | Mutant Dominant Class ---------------- Mutant | -10/Materials Gunner | -9/Materials Gunner | -9/Mines Scavenger-Tank | -8/Materials Tank | -8/Storage Tank | -7/Factory Hacker-Gunner | -7/Lower Caves Hacker-Gunner | -7/Lower Caves Hacker-Tank | -7/Zion Hacker-Gunner | -6/Proximity Caves Scavenger-Tank | -6/Factory Scavenger-Gunner | -5/Factory Scavenger-Mutant | -5/Extension Scavenger-Gunner | -5/Cetus Scavenger-Gunner | -5/Archives Scavenger-Tank | -4/Factory Scavenger-Mutant | -3/Research Resources | -11 -10 -9 -9 -8 -8 -7 -7 -7 -7 -6 -6 -5 -5 -5 -5 -4 -3 ----------- Run | Yrd Mat Mat Min Mat Sto Fac Low Low Zio Pro Fac Fac Ext Cet Arc Fac Res Matter Collected 5626 | 252 238 438 60 153 287 455 80 64 67 104 663 380 755 232 201 792 405 Remotely . | . . . . . . . . . . . . . . . . . . Salvage Created 13333 | 54 371 1081 276 206 1149 1530 90 175 . 370 1890 463 1305 353 198 2602 1220 Parts 568 | 5 23 66 17 8 50 64 1 3 . 9 74 22 52 16 8 110 40 Haulers Intercepted 18 | . 2 5 . . 6 1 . . . . 2 . . . . 1 1 Recyclers Shooed 5 | . . . . . . . . . . . 2 1 . . . 2 . Parts Field Recycled . | . . . . . . . . . . . . . . . . . . Retrieved Matter . | . . . . . . . . . . . . . . . . . . Parts Self-Destructed 5 | . . . . . . . 1 3 . 1 . . . . . . . Prevented 7 | . . . . . . . . . . 7 . . . . . . . Kills | -11 -10 -9 -9 -8 -8 -7 -7 -7 -7 -6 -6 -5 -5 -5 -5 -4 -3 ------- Run | Yrd Mat Mat Min Mat Sto Fac Low Low Zio Pro Fac Fac Ext Cet Arc Fac Res Combat Hostiles Destroyed 198 | . 10 23 6 4 19 24 1 3 . 6 24 3 24 4 2 30 15 Melee 2 | . . . . . . . . . . . . . 2 . . . . Guns 87 | . 10 20 5 . . . . . . . 6 1 4 4 2 24 11 Cannons 79 | . . 3 1 3 19 22 1 3 . . 17 2 7 . . 1 . AOE 16 | . . . . . . . . . . 4 . . 10 . . 1 1 Classes Destroyed 24 | 1 3 3 2 1 2 3 1 . . 1 . . 2 . . 3 2 Worker 15 | . . 1 . . 1 3 . . . . 3 . 1 . . 6 . Builder 13 | . . 1 . . 1 1 . . . . 3 1 3 . . 2 1 Tunneler 10 | 3 . . 2 . 1 . . . . . . 4 . . . . . Hauler 18 | . 2 5 . . 6 1 . . . . 2 . . . . 1 1 Recycler 10 | . . . . . . 2 . . . . 2 1 2 . . 1 2 Mechanic 1 | . . . . . . . . . . . . . . . . 1 . Operator 7 | . . . . . 1 2 . . . . . 1 1 . 1 1 . Drone 2 | . . . . . . . . . . 2 . . . . . . . Watcher 4 | . . . . . 1 . . . . . . 1 . 1 . . 1 Swarmer 41 | . 5 7 . . 7 3 . . . . 3 . 8 . . 4 4 Grunt 70 | . 5 10 4 . 8 8 . 2 . 3 12 . 7 . . 5 6 Brawler 3 | . . . . . . 1 . 1 . 1 . . . . . . . Duelist 6 | . . . 1 . . 1 . . . . 4 . . . . . . Protector 1 | . . . 1 . . . . . . . . . . . . . . Sentry 33 | . . 6 . 2 5 5 . . . . 2 1 4 . 2 4 2 Specialist 2 | . . . . . . . . . . . . . . . . 2 . Hunter 24 | . . . . 2 . 3 . . . . 2 2 2 . . 12 1 Programmer 7 | . . . . . . 3 1 . . . 1 . . . . 2 . Heavy 1 | . . . . . . . . . . . . . . . . 1 . Behemoth 2 | . . . . . . . . . . . . . 2 . . . . Cetus Guard 4 | . . . . . . . . . . . . . . 4 . . . Striker 1 | . . . . . . . . . . . . . . . . . 1 Executioner 1 | . . . . . . . . . . . . . . . . . 1 Explorer 1 | . . . . . . . . . . . . . 1 . . . . Samaritan 2 | . . . . . . . 1 . . 1 . . . . . . . Savage 1 | . . . . . . . . . . . . . 1 . . . . Butcher 1 | . . . . . . . . . . . . . . 1 . . . Guerrilla 1 | . . . . . . . . . . . . . . . . 1 . Best Kill Streak 15 | 2 4 5 4 2 8 5 1 3 . 4 5 3 12 3 2 15 8 Combat Bots Only 10 | . 3 4 4 2 7 4 1 3 . 4 4 2 10 2 1 10 6 Max Kills in Single Turn 7 | 1 2 2 1 1 2 2 1 1 . 1 1 1 7 2 1 2 2 Gunslinging 1 | . 1 1 . . . . . . . . . . . 1 . . . Exploded 6 | . . . . . . . . . . 1 . . 6 . . 1 1 Melee 1 | . . . . . . . . . . . . . 1 . . . . Uniques/NPCs Destroyed . | . . . . . . . . . . . . . . . . . . Combat | -11 -10 -9 -9 -8 -8 -7 -7 -7 -7 -6 -6 -5 -5 -5 -5 -4 -3 -------- Run | Yrd Mat Mat Min Mat Sto Fac Low Low Zio Pro Fac Fac Ext Cet Arc Fac Res Hostile Shots Fired 1813 | . 50 110 11 12 116 280 6 18 . 2 242 25 268 10 15 281 367 Missed 470 | . 14 30 3 4 35 90 1 1 . 1 62 8 77 6 3 57 78 Damage Taken 23152 | . 319 913 120 124 835 1741 75 294 . 68 3110 284 4422 112 349 3687 6699 Core 2798 | . 84 87 . 29 107 122 . 16 . 45 205 . 624 . 26 141 1312 Absorbed by Shields 1314 | . . . . 13 173 215 . . . . 116 . 107 . . 299 391 Reduced by Siege Mode 479 | . . . . . . . . . . . . . . . . 225 254 Ignored by Resistances 271 | . . . . . . . . . . . . . 186 . . 78 7 Regen/Repaired (Parts) 85 | . . . . . 85 . . . . . . . . . . . . Core Remaining (%) 73 | 100 66 . 78 . 75 . . . . 73 75 . . . 35 87 . Volleys Fired 689 | 10 35 63 11 7 48 72 4 10 . 17 95 27 71 8 12 88 111 Largest 3 | 2 2 3 3 3 3 3 3 3 . 1 3 3 3 3 3 3 3 Hottest 265 | 70 70 156 156 195 195 195 195 195 . 39 195 265 260 103 105 209 209 Shots Fired 1496 | 20 70 176 30 21 136 190 14 22 . 17 204 73 158 24 36 188 117 Gun 780 | 20 70 168 22 . . . . . . . 77 31 59 24 36 169 104 Cannon 682 | . . 8 8 21 136 190 14 22 . . 127 42 86 . . 19 9 Launcher 34 | . . . . . . . . . . 17 . . 13 . . . 4 Special . | . . . . . . . . . . . . . . . . . . Kinetic 447 | 10 35 76 11 . . . . . . . 71 16 18 24 36 147 3 Thermal 972 | 10 35 100 19 21 136 190 14 22 . . 118 57 127 . . 22 101 Explosive 17 | . . . . . . . . . . . . . 13 . . . 4 Electromagnetic 60 | . . . . . . . . . . 17 15 . . . . 19 9 Robot Hit Streak 27 | 11 7 13 16 5 16 14 7 10 . 3 14 21 27 7 9 24 23 Robot Miss Streak 6 | 1 3 4 2 2 3 3 2 1 . 1 3 3 3 2 2 6 4 Penetration Max 1 | . . . . . . . . . . . . . 1 1 1 1 . Secondary Targets 11 | . 2 2 1 . . . . . . . . . . 3 . 3 . Max Gunslinging Chain 2 | . 1 1 1 . . . . . . . . . . 2 . 1 . Capacitor 104 | . . . . . . . . . . . . . . . . . 104 Shots Hit Robots 1028 | 15 43 111 22 12 82 123 7 15 . 4 149 45 136 15 28 129 92 Core Hits 506 | 5 21 45 12 5 34 49 1 5 . 9 89 24 72 13 9 66 47 Critical Kills 23 | . . . . . . . 1 . . . . . . 4 2 15 1 Critical Parts Destroyed 15 | . . 1 . . . . . . . . . . . 1 . 13 . Critical Strikes 56 | . 5 5 1 . . . 1 . . . . 2 3 5 4 28 2 Burn 15 | . 5 4 1 . . . . . . . . 2 3 . . . . Meltdown 1 | . . . . . . . 1 . . . . . . . . . . Destroy 39 | . . 1 . . . . . . . . . . . 5 4 28 1 Sever 1 | . . . . . . . . . . . . . . . . . 1 Melee Attacks 27 | . . 5 . . . . . . 1 . . . 9 . . . 12 Impact . | . . . . . . . . . . . . . . . . . . Slashing 23 | . . 5 . . . . . . 1 . . . 8 . . . 9 Piercing . | . . . . . . . . . . . . . . . . . . Sneak Attacks 5 | . . . . . . . . . . . . . 3 . . . 2 Combat Hostiles . | . . . . . . . . . . . . . . . . . . Follow-up Attacks . | . . . . . . . . . . . . . . . . . . Damage Inflicted 31376 | 168 508 1615 351 350 2436 3560 225 430 . 622 3723 1225 5911 567 1096 4965 3624 Guns 12936 | 168 508 1460 235 . . . . . . . 1039 431 1344 567 1096 3870 2218 Cannons 13580 | . . 153 116 350 2384 3458 225 430 . . 2649 784 2107 . . 690 234 Explosions 4066 | . . . . . 52 . . . . 622 . . 2093 . . 341 958 Melee 509 | . . . . . . . . . . . . . 312 . . . 197 Ramming 285 | . . 2 . . . 102 . . . . 35 10 55 . . 64 17 Kinetic 7673 | 42 167 537 101 . . . . . . . 946 233 433 567 1096 3473 78 Thermal 18003 | 126 341 1076 250 350 2384 3458 225 430 . . 2381 982 3018 . . 505 2477 Explosive 2999 | . . . . . 52 . . . . . . . 2093 . . 233 621 Electromagnetic 1907 | . . . . . . . . . . 622 361 . . . . 690 234 Impact . | . . . . . . . . . . . . . . . . . . Slashing 509 | . . . . . . . . . . . . . 312 . . . 197 Piercing . | . . . . . . . . . . . . . . . . . . Highest Corruption 11 | . . . . . 2 5 10 10 10 11 9 . 2 2 2 . . Average Corruption 4 | . . . . . 2 5 8 10 10 1 8 . 2 2 1 . . Corruption Purged 2 | . . . . . . . . . . . . . . . 2 . . Corruption Blocked . | . . . . . . . . . . . . . . . . . . Effects 129 | . . . . . 6 30 20 20 3 . 25 . 17 6 2 . . Message Errors 37 | . . . . . 1 7 6 7 1 . 8 . 4 2 1 . . Matter Fused 22 | . . . . . 2 6 5 3 . . . . 4 1 1 . . Heat Flow Errors 12 | . . . . . . 5 2 2 . . 3 . . . . . . Energy Discharges 16 | . . . . . 2 1 1 3 . . 4 . 4 1 . . . Parts Rejected 1 | . . . . . 1 . . . . . . . . . . . . Parts Fused 2 | . . . . . . 1 . . . . 1 . . . . . . Data Loss (minor) 19 | . . . . . . 3 3 3 1 . 4 . 3 2 . . . Data Loss (major) 9 | . . . . . . 1 1 2 1 . 2 . 2 . . . . Misfires 5 | . . . . . . 2 2 . . . 1 . . . . . . Alerts 1 | . . . . . . 1 . . . . . . . . . . . Weapon Failures 5 | . . . . . . 3 . . . . 2 . . . . . . Overload Shots 2 | . . . . . . 2 . . . . . . . . . . . Overflow Damage 626 | . . . 4 . 74 38 34 24 . 33 29 58 153 . . 6 173 Projectiles 324 | . . . 4 . 74 38 34 24 . . 29 58 63 . . . . Explosions 284 | . . . . . . . . . . 33 . . 90 . . . 161 Melee 18 | . . . . . . . . . . . . . . . . 6 12 Knockbacks 4 | . . . . . . . . . . . . 1 2 . . 1 . Impact 4 | . . . . . . . . . . . . 1 2 . . 1 . Kinetic . | . . . . . . . . . . . . . . . . . . Secondary . | . . . . . . . . . . . . . . . . . . Self-Inflicted Damage 525 | . . . . . . . . . . 50 . . 420 . . . 55 Shots 19 | . . . . . . . . . . 7 . . 9 . . . 3 Rammed 32 | . . 1 . . . 15 . . . . 3 2 3 . . 5 3 Targets Rammed 38 | . . 1 . . . 18 . . . . 4 2 5 . . 5 3 Kicked . | . . . . . . . . . . . . . . . . . . Crushed 6 | . . . . . . 3 . . . . 1 . 2 . . . . Highest Temperature 575 | 90 70 368 258 168 356 409 233 277 . . 366 267 575 6 36 360 430 Average Temperature 99 | 36 21 125 110 64 103 90 57 151 . . 106 115 140 2 14 51 221 Received Heat Transfer 4572 | . 84 348 87 . 230 443 . 144 . 9 927 18 968 . 36 489 789 Effects 23 | . . 3 2 . . . . 6 . . 1 1 7 . . 3 . Shutdowns 4 | . . 1 . . . . . . . . . . 3 . . . . Energy Bleed 4 | . . . . . . . . . . . 1 1 1 . . 1 . Interference 14 | . . 2 2 . . . . 6 . . . . 2 . . 2 . Short Circuit 1 | . . . . . . . . . . . . . 1 . . . . Siege Activations 11 | . . . . . . . . . . . . . . . . 8 3 Total Turns 202 | . . . . . . . . . . . . . . . . 127 75 Longest Duration 36 | . . . . . . . . . . . . . . . . 36 33 Robots Corrupted 12 | . . . . . . 1 . . . 3 1 . . . . 5 2 Combat Hostiles 9 | . . . . . . . . . . 2 1 . . . . 4 2 Parts Fried 29 | . . . . . . 3 . . . 11 5 . . . . 9 1 Impact Corruptions 2 | . . . . . . 1 . . . . . . . . . 1 . Robots Melted 6 | . . . . 1 . 2 1 . . . . . 1 . . . 1 Combat Hostiles 5 | . . . . 1 . 2 . . . . . . 1 . . . 1 Parts Melted 90 | 1 3 8 4 3 5 16 4 1 . . 6 10 17 . . 2 10 Heat Transferred 27461 | 370 1369 2812 593 444 3219 4625 259 592 . . 3293 1651 4675 . . 581 2978 Parts Sabotaged . | . . . . . . . . . . . . . . . . . . Parts Stolen . | . . . . . . . . . . . . . . . . . . Parts Stripped . | . . . . . . . . . . . . . . . . . . Power Chain Reactions 2 | . . . . . . . . . . . . . . . . 1 1 Alert | -11 -10 -9 -9 -8 -8 -7 -7 -7 -7 -6 -6 -5 -5 -5 -5 -4 -3 ------- Run | Yrd Mat Mat Min Mat Sto Fac Low Low Zio Pro Fac Fac Ext Cet Arc Fac Res Peak Influence 1147 | 15 322 391 100 221 344 470 . . . . 479 321 395 447 348 1147 673 Initial 577 | . 9 80 100 23 8 105 . . . . 302 219 . 137 178 121 577 Average 238 | 7 94 214 40 89 189 208 . . . . 328 174 233 311 320 520 596 Maximum Alert Level 4 | . 1 1 . 1 1 2 . . . . 2 1 1 2 1 4 2 Low Security (%) 44 | 100 86 37 100 92 51 47 . . . . 8 51 32 9 6 25 . Level 1 41 | . 13 62 . 7 48 43 . . . . 67 48 67 59 93 26 . Level 2 10 | . . . . . . 9 . . . . 24 . . 31 . 10 100 Level 3 1 | . . . . . . . . . . . . . . . . 32 . Level 4 . | . . . . . . . . . . . . . . . . 5 . Level 5 . | . . . . . . . . . . . . . . . . . . High Security . | . . . . . . . . . . . . . . . . . . Max Security . | . . . . . . . . . . . . . . . . . . Squads Dispatched 38 | . 3 1 2 2 2 5 . . . . 4 1 2 . . 10 6 Investigation 9 | . 1 1 1 1 . 1 . . . . . 1 . . . 1 2 Extermination 4 | . . . . . . 2 . . . . 1 . . . . 1 . Reinforcement 19 | . 2 . . 1 1 2 . . . . 2 . 2 . . 5 4 Assault 2 | . . . 1 . . . . . . . 1 . . . . . . Garrison 4 | . . . . . 1 . . . . . . . . . . 3 . Intercept . | . . . . . . . . . . . . . . . . . . Searches Triggered 1 | . . . . . . . . . . . 1 . . . . . . Construction Impeded 5 | . . . . . . . . . . . 1 . 2 . . 2 . Haulers Reinforced 3 | . . . . . . . . . . . . . . . . 1 2 Active Scanning Responses . | . . . . . . . . . . . . . . . . . . Cargo Convoy Interrupts . | . . . . . . . . . . . . . . . . . . Stealth | -11 -10 -9 -9 -8 -8 -7 -7 -7 -7 -6 -6 -5 -5 -5 -5 -4 -3 --------- Run | Yrd Mat Mat Min Mat Sto Fac Low Low Zio Pro Fac Fac Ext Cet Arc Fac Res Distress Signals 27 | . 3 1 . 1 4 4 . . . . 1 1 2 2 1 1 6 Communications Jammed . | . . . . . . . . . . . . . . . . . . Distress Signals . | . . . . . . . . . . . . . . . . . . Times Spotted 330 | . 23 30 6 9 26 36 1 3 . 8 37 10 43 10 8 36 44 Peak Tracking Total 10 | . 4 7 4 2 8 4 1 3 . 5 7 3 10 5 2 7 9 Tactical Retreats 14 | . 3 . . . 1 1 . . . 1 5 . 1 . . . 2 Traps | -11 -10 -9 -9 -8 -8 -7 -7 -7 -7 -6 -6 -5 -5 -5 -5 -4 -3 ------- Run | Yrd Mat Mat Min Mat Sto Fac Low Low Zio Pro Fac Fac Ext Cet Arc Fac Res Traps Triggered 12 | . . 1 . . 1 2 . . . . 2 . 5 . . 1 . Indirectly . | . . . . . . . . . . . . . . . . . . Trap Hack Attempts . | . . . . . . . . . . . . . . . . . . Triggered . | . . . . . . . . . . . . . . . . . . Disarmed . | . . . . . . . . . . . . . . . . . . Reprogrammed . | . . . . . . . . . . . . . . . . . . Reused . | . . . . . . . . . . . . . . . . . . Traps Extracted . | . . . . . . . . . . . . . . . . . . Installed . | . . . . . . . . . . . . . . . . . . Triggered 1 | . . . . . . . . . . 1 . . . . . . . Machines | -11 -10 -9 -9 -8 -8 -7 -7 -7 -7 -6 -6 -5 -5 -5 -5 -4 -3 ---------- Run | Yrd Mat Mat Min Mat Sto Fac Low Low Zio Pro Fac Fac Ext Cet Arc Fac Res Machines Disabled 24 | . . . . 1 4 . . . . . . 1 1 . 4 13 . Max in Single Turn 2 | . . . . 1 1 . . . . . . 1 . . 1 2 . Garrison Access 4 | . . . . 1 1 . . . . . 1 1 . . . . . Machines Repaired . | . . . . . . . . . . . . . . . . . . Machines Dismantled . | . . . . . . . . . . . . . . . . . . Machines Sabotaged . | . . . . . . . . . . . . . . . . . . Overloaded Fab Kills . | . . . . . . . . . . . . . . . . . . Hacking | -11 -10 -9 -9 -8 -8 -7 -7 -7 -7 -6 -6 -5 -5 -5 -5 -4 -3 --------- Run | Yrd Mat Mat Min Mat Sto Fac Low Low Zio Pro Fac Fac Ext Cet Arc Fac Res Machines Accessed 69 | . 5 8 1 5 10 7 . . 1 . 3 7 9 3 . 5 5 Terminals 43 | . 4 6 . 2 7 3 . . . . . 4 8 3 . 5 1 Fabricators 1 | . . . . . . . . . . . . 1 . . . . . Repair Stations 5 | . . . . . 2 2 . . . . . . . . . . 1 Recycling Units 8 | . 1 1 . 1 . 2 . . . . 1 . 1 . . . 1 Scanalyzers 5 | . . 1 . 1 . . . . . . 1 . . . . . 2 Garrison Access 5 | . . . . 1 1 . . . . . 1 2 . . . . . Total Hacks 144 | . 12 24 1 17 21 11 . . 3 . 4 12 13 6 . 10 10 Successful 82 | . 7 11 1 14 11 4 . . 3 . 4 7 8 2 . 5 5 Failed 59 | . 4 12 . 2 10 7 . . . . . 5 5 4 . 5 5 Catastrophic 10 | . 1 1 . 1 1 3 . . . . . 3 . . . . . Database Lockouts 3 | . 1 1 . 1 . . . . . . . . . . . . . Manual 42 | . 11 7 . 4 1 4 . . 1 . . 7 1 . . 5 1 Terminals 96 | . 10 20 . 9 15 4 . . . . . 8 12 6 . 10 2 Fabricators 2 | . . . . . . . . . . . . 2 . . . . . Repair Stations 9 | . . . . . 5 3 . . . . . . . . . . 1 Recycling Units 13 | . 2 2 . 2 . 4 . . . . 1 . 1 . . . 1 Scanalyzers 15 | . . 2 . 5 . . . . . . 2 . . . . . 6 Garrison Access 5 | . . . . 1 1 . . . . . 1 2 . . . . . Terminal Hacks 43 | . 4 7 1 6 6 1 . . 3 . . 2 6 2 . 4 1 Record 2 | . . . . . . . . . . . . . . 1 . 1 . Part Schematic 4 | . 1 . . . . . . . 3 . . . . . . . . Robot Analysis 3 | . . 1 . 1 . . . . . . . . . . . 1 . Prototype ID Bank 7 | . 1 2 . 3 1 . . . . . . . . . . . . Open Door 10 | . . . 1 . 2 . . . . . . . 6 1 . . . Branch Access Points 2 | . . . . . . 1 . . . . . 1 . . . . . Terminal Index 3 | . . 1 . . . . . . . . . . . . . 1 1 Unreport Threat 5 | . 1 . . 2 1 . . . . . . 1 . . . . . Locate Traps 2 | . . 1 . . 1 . . . . . . . . . . . . Hauler Manifests 2 | . 1 . . . 1 . . . . . . . . . . . . Zone Layout 3 | . . 2 . . . . . . . . . . . . . 1 . Fabricator Hacks 2 | . . . . . . . . . . . . 2 . . . . . Load Schematic 1 | . . . . . . . . . . . . 1 . . . . . Build 1 | . . . . . . . . . . . . 1 . . . . . Repair Station Hacks 3 | . . . . . 3 . . . . . . . . . . . . Scan Component 2 | . . . . . 2 . . . . . . . . . . . . Repair 1 | . . . . . 1 . . . . . . . . . . . . Recycling Unit Hacks 6 | . . . . 1 . 2 . . . . 1 . 1 . . . 1 Retrieve Components 6 | . . . . 1 . 2 . . . . 1 . 1 . . . 1 Scanalyzer 11 | . . 2 . 5 . . . . . . 2 . . . . . 2 Insert Component 6 | . . 1 . 2 . . . . . . 1 . . . . . 2 Analyze 5 | . . 1 . 3 . . . . . . 1 . . . . . . Garrison Access Hacks 4 | . . . . 1 1 . . . . . 1 1 . . . . . Seal Access 4 | . . . . 1 1 . . . . . 1 1 . . . . . Unauthorized Hacks 13 | . 3 2 . 1 1 1 . . . . . 2 1 . . 1 1 Terminals 10 | . 2 2 . . 1 . . . . . . 2 1 . . 1 1 Botnet 10 | . 2 2 . . 1 . . . . . . 2 1 . . 1 1 Fabricators . | . . . . . . . . . . . . . . . . . . Repair Stations . | . . . . . . . . . . . . . . . . . . Recycling Units 3 | . 1 . . 1 . 1 . . . . . . . . . . . Tunnel 3 | . 1 . . 1 . 1 . . . . . . . . . . . Scanalyzers . | . . . . . . . . . . . . . . . . . . Garrison Access . | . . . . . . . . . . . . . . . . . . Data Cores Recovered 2 | . . . . . . 1 . . . . . . 1 . . . . Used . | . . . . . . . . . . . . . . . . . . Hacking Detections 52 | . 4 8 . 3 7 7 . . . . 2 6 3 2 . 5 5 Full Trace Events 2 | . . . . . . . . . . . . 1 . . . 1 . Feedback Events . | . . . . . . . . . . . . . . . . . . Feedback Blocked . | . . . . . . . . . . . . . . . . . . Robot Schematics Acquired 4 | . . . . . . . . . 4 . . . . . . . . Robots Built . | . . . . . . . . . . . . . . . . . . Authchips . | . . . . . . . . . . . . . . . . . . Time . | . . . . . . . . . . . . . . . . . . Total Robot Build Rating . | . . . . . . . . . . . . . . . . . . Part Schematics Acquired 23 | . 1 1 . 2 . . . . 18 . 1 . . . . . . Parts Built 2 | . . . . . . . . . . . . 2 . . . . . Authchips . | . . . . . . . . . . . . . . . . . . Time 53 | . . . . . . . . . . . . 53 . . . . . Total Part Build Rating 12 | . . . . . . . . . . . . 12 . . . . . Parts Repaired 1 | . . . . . 1 . . . . . . . . . . . . Time 32 | . . . . . 32 . . . . . . . . . . . . Parts Recycled . | . . . . . . . . . . . . . . . . . . Recycled Matter . | . . . . . . . . . . . . . . . . . . Retrieved Matter . | . . . . . . . . . . . . . . . . . . Retrieved Components 30 | . . . . 2 . 19 . . . . 7 . . . . . 2 Parts Scanalyzed 5 | . . 1 . 2 . . . . . . 1 . . . . . 1 Part Schematics Acquired 4 | . . 1 . 2 . . . . . . 1 . . . . . . Parts Damaged 1 | . . . . . . . . . . . . . . . . . 1 Bothacking | -11 -10 -9 -9 -8 -8 -7 -7 -7 -7 -6 -6 -5 -5 -5 -5 -4 -3 ------------ Run | Yrd Mat Mat Min Mat Sto Fac Low Low Zio Pro Fac Fac Ext Cet Arc Fac Res Used RIF Installer . | . . . . . . . . . . . . . . . . . . Robots Hacked 4 | . . . . . . . . . . . . . 1 . . . 3 Non-combat . | . . . . . . . . . . . . . . . . . . Combat 4 | . . . . . . . . . . . . . 1 . . . 3 Robot Hacks Applied 4 | . . . . . . . . . . . . . 1 . . . 3 parse_system 4 | . . . . . . . . . . . . . 1 . . . 3 Relay Couplers Released . | . . . . . . . . . . . . . . . . . . Fabnet Peak Effective % . | . . . . . . . . . . . . . . . . . . Robots Rewired 13 | . . . . . . . . . . . . . 13 . . . . Allies Hacked . | . . . . . . . . . . . . . . . . . . Hacks Repelled . | . . . . . . . . . . . . . . . . . . Allies | -11 -10 -9 -9 -8 -8 -7 -7 -7 -7 -6 -6 -5 -5 -5 -5 -4 -3 -------- Run | Yrd Mat Mat Min Mat Sto Fac Low Low Zio Pro Fac Fac Ext Cet Arc Fac Res Total Allies 24 | . . . 4 . . . . . . . . . 20 . . . . Largest Group 10 | . . . 3 2 2 . . . . . . . 10 10 7 2 . Highest-Rated Group 294 | . . . 40 32 32 . . . . . . . 294 294 206 70 . Highest-Rated Ally 39 | . . . 31 16 16 . . . . . . . 39 39 39 39 . Total Orders . | . . . . . . . . . . . . . . . . . . Ally Attacks 180 | . . . 13 10 13 . . . . . . . 68 32 35 9 . Total Damage 2939 | . . . 117 115 125 . . . . . . . 1191 524 761 106 . Kills 25 | . . . 1 2 . . . . . . . . 12 5 3 2 . Allies Corrupted . | . . . . . . . . . . . . . . . . . . Allies Melted . | . . . . . . . . . . . . . . . . . . Intel | -11 -10 -9 -9 -8 -8 -7 -7 -7 -7 -6 -6 -5 -5 -5 -5 -4 -3 ------- Run | Yrd Mat Mat Min Mat Sto Fac Low Low Zio Pro Fac Fac Ext Cet Arc Fac Res Robot Analysis Total 3 | . . 1 . 1 . . . . . . . . . . . 1 . Derelict Logs Recovered 7 | . . . 2 . . . 1 1 1 2 . . . . . . . Drone Launches . | . . . . . . . . . . . . . . . . . . Drone Recoveries . | . . . . . . . . . . . . . . . . . . Exploration | -11 -10 -9 -9 -8 -8 -7 -7 -7 -7 -6 -6 -5 -5 -5 -5 -4 -3 ------------- Run | Yrd Mat Mat Min Mat Sto Fac Low Low Zio Pro Fac Fac Ext Cet Arc Fac Res Turns Passed 18351 | 173 939 1700 1446 504 1266 1810 635 588 1625 550 1153 818 2618 398 233 929 966 Spaces Moved 7855 | 80 506 646 640 189 399 692 262 290 970 316 419 484 919 189 85 351 418 Core 2 | 2 . . . . . . . . . . . . . . . . . Treads 1980 | 78 506 1 . . 4 49 104 . . . 12 . 197 189 85 351 404 Legs . | . . . . . . . . . . . . . . . . . . Wheels 5873 | . . 645 640 189 395 643 158 290 970 316 407 484 722 . . . 14 Hover . | . . . . . . . . . . . . . . . . . . Flight . | . . . . . . . . . . . . . . . . . . Fastest Speed 50 | 50 160 110 210 210 225 155 225 160 145 160 145 115 115 160 160 160 160 Average Speed 187 | 157 160 207 210 236 243 191 230 188 158 160 172 121 232 173 160 160 160 Slowest Speed 640 | 160 160 320 210 240 640 405 240 225 160 160 240 131 560 240 160 160 190 Overloaded Moves . | . . . . . . . . . . . . . . . . . . Propulsion Burnouts . | . . . . . . . . . . . . . . . . . . Robots Hopped . | . . . . . . . . . . . . . . . . . . Cave-ins Triggered . | . . . . . . . . . . . . . . . . . . Exploration Rate (%) 49 | 5 80 62 100 15 63 26 47 48 84 52 15 13 95 78 80 12 14 Regions Visited 17 Branch Regions 9 Pre-discovered Areas 5 | . 1 . 1 1 . 1 . . . 1 . . . . . . . Known Exits Taken 5 | . . . . 1 . 1 1 . . . 1 1 . . . . . Unknown Exits Taken 12 | 1 1 1 1 . 1 . . 1 1 1 . . 1 1 1 1 . Scrap Searched 10 | . . . 1 . . . 4 2 3 . . . . . . . . Spaces Dug 22 | . . 3 . . 1 5 . . . . 1 2 . . . 9 1 Terrain Destroyed 441 | . . 3 . 6 56 20 4 . . . 7 12 114 13 17 169 20 Melee 3 | . . 3 . . . . . . . . . . . . . . . Projectile 212 | . . . . 6 37 20 4 . . . 7 12 16 13 17 76 4 AOE 226 | . . . . . 19 . . . . . . . 98 . . 93 16 Terrain Rammed . | . . . . . . . . . . . . . . . . . . Walls Destroyed . | . . . . . . . . . . . . . . . . . . Machines Disabled . | . . . . . . . . . . . . . . . . . . Actions | -11 -10 -9 -9 -8 -8 -7 -7 -7 -7 -6 -6 -5 -5 -5 -5 -4 -3 --------- Run | Yrd Mat Mat Min Mat Sto Fac Low Low Zio Pro Fac Fac Ext Cet Arc Fac Res Total 10291 | 106 574 876 719 232 583 983 285 317 1055 340 665 652 1244 250 157 562 691 Wait 807 | 4 17 78 61 2 92 116 . 9 70 1 64 63 66 10 41 63 50 Move 7838 | 79 505 645 639 188 398 691 261 289 969 315 418 483 918 188 84 350 418 Hop . | . . . . . . . . . . . . . . . . . . Pick Up 233 | 6 11 31 2 7 7 18 5 2 . 2 32 20 27 10 6 20 27 Fast Attach 73 | 7 . 4 . 4 4 6 5 1 6 . 4 6 16 3 1 1 5 Attach 113 | . 1 7 . 2 2 9 1 . . . 26 9 19 . . 11 26 Detach 19 | . . 1 . 2 . 2 . 1 1 . 1 2 3 3 1 . 2 Swap 176 | . 2 18 3 9 23 28 1 1 3 3 11 21 14 8 4 12 15 Drop 196 | . 3 23 3 11 9 23 8 4 5 2 10 19 14 20 8 12 22 Fire 689 | 10 35 63 11 7 48 72 4 10 . 17 95 27 71 8 12 88 111 Melee 27 | . . 5 . . . . . . 1 . . . 9 . . . 12 Ram . | . . . . . . . . . . . . . . . . . . Kick . | . . . . . . . . . . . . . . . . . . Crush 38 | . . 1 . . . 18 . . . . 4 2 5 . . 5 3 Escape Stasis 22 | . . . . . . . . . . . . . 22 . . . . Rewire 60 | . . . . . . . . . . . . . 60 . . . . Trap . | . . . . . . . . . . . . . . . . . . Miscellaneous . | . . . . . . . . . . . . . . . . . . Route ------- -11/Scrapyard -10/Materials (discovered 5 exits: *Mat x3 / [*Min x2]) -9/Materials (discovered 3 exits: *Mat x2 / *Min) -9/Mines (discovered 3 exits: *Mat x2 / *Zio) -8/Materials -8/Storage -7/Factory (discovered 2 exits: *Low x2) -7/Lower Caves -7/Lower Caves (discovered 2 exits: *Fac / *Zio) -7/Zion -6/Proximity Caves -6/Factory (discovered 4 exits: *Fac x3 / Low) -5/Factory (discovered 4 exits: Upp x2 / *Ext x2) -5/Extension (discovered 2 exits: *Fac / *Cet) -5/Cetus (discovered 2 exits: *Fac / [*Arc]) -5/Archives (discovered 3 exits: *Fac / [*Hub x2]) -4/Factory -3/Research History --------- Turn | Location | Event 15 | -11/Scrapyard | Discovered new exit (range 15) 174 | -11/Scrapyard | Entered Materials 308 | -10/Materials | Build established: Mutant 407 | -10/Materials | Discovered new exit (range 13) 442 | -10/Materials | Discovered new exit (range 11) 471 | -10/Materials | Central database locked down 564 | -10/Materials | Discovered new exit (range 16) 764 | -10/Materials | Discovered new exit (range 14) 796 | -10/Materials | Discovered new exit (range 7) 1113 | -10/Materials | Entered another Materials area 1113 | -9/Materials | Evolved 2 slots: Propulsion x1, Weapon x1 1419 | -9/Materials | Build established: Gunner 1727 | -9/Materials | Build established: Scavenger-Gunner 1857 | -9/Materials | Discovered new exit (range 10) 1863 | -9/Materials | Central database locked down 2547 | -9/Materials | Discovered new exit (range 5) 2678 | -9/Materials | Build established: Gunner 2754 | -9/Materials | Discovered new exit (range 16) 2813 | -9/Materials | Entered Mines 2821 | -9/Mines | Met a Derelict shopkeep closing up shop 2858 | -9/Mines | A Derelict revealed a hidden shortcut to a safe place 2859 | -9/Mines | Learned location of Storage (-8) 3172 | -9/Mines | Discovered new exit (range 10) 3344 | -9/Mines | Discovered new exit (range 9) 3503 | -9/Mines | Learned location of 1 exit from Materials 3510 | -9/Mines | Received a Rocket Launcher from a helpful Derelict 3568 | -9/Mines | Met a Derelict testing a Signal Generator 3979 | -9/Mines | Assisted by bots powering up and referring to "LRC-V3" 4259 | -9/Mines | Entered Materials 4259 | -8/Materials | Accompanied by 2 allies 4259 | -8/Materials | Evolved 2 slots: Utility x2 4260 | -8/Materials | Identified exit to Storage 4293 | -8/Materials | Found Powered Armor 4297 | -8/Materials | Found Powered Armor 4301 | -8/Materials | Found Powered Armor 4305 | -8/Materials | Found Powered Armor 4559 | -8/Materials | Build established: Scavenger-Tank 4584 | -8/Materials | Central database locked down 4763 | -8/Materials | Entered Storage 4763 | -8/Storage | Accompanied by 2 allies 4881 | -8/Storage | Build established: Tank 5417 | -8/Storage | Destroyed 7 combat bots 5832 | -8/Storage | Garrison activated, responded to threat 5959 | -8/Storage | Discovered new exit (range 16) 6010 | -8/Storage | Repaired Arm. Wheel 6029 | -8/Storage | Entered Factory 6029 | -7/Factory | Evolved 2 slots: Propulsion x1, Utility x1 7606 | -7/Factory | Identified exit to Lower Caves 7839 | -7/Factory | Entered Lower Caves 7970 | -7/Lower Caves | Identified exit to Lower Caves 8077 | -7/Lower Caves | Build established: Hacker-Gunner 8218 | -7/Lower Caves | System corruption reached 10% 8474 | -7/Lower Caves | Entered another Lower Caves area 8481 | -7/Lower Caves | Discovered new exit (range 6) 8585 | -7/Lower Caves | Learned location of 1 exit from Factory 8756 | -7/Lower Caves | Found DCF Scrap (13 items) 9028 | -7/Lower Caves | Discovered new exit (range 8) 9062 | -7/Lower Caves | Entered Zion 9092 | -7/Zion | Given the Hacking Drone Bay 9144 | -7/Zion | System corruption cleaned by Quarantine Array 9258 | -7/Zion | Acquired unknown access codes intercepted by a Zionite 9289 | -7/Zion | Discovered new exit (range 15) 9502 | -7/Zion | Build established: Hacker-Tank 9731 | -7/Zion | Given A8's code to call for help 10063 | -7/Zion | Received a visual enhancement algorithm 10221 | -7/Zion | Learned location of 1 exit from Factory 10297 | -7/Zion | Met Imprinter 10687 | -7/Zion | Entered Proximity Caves 10713 | -6/Proximity Caves | Learned Factory security intel 10864 | -6/Proximity Caves | Spotter reported a threat 10980 | -6/Proximity Caves | Build established: Hacker-Gunner 11108 | -6/Proximity Caves | Spotter reported a threat 11228 | -6/Proximity Caves | Discovered new exit (range 5) 11237 | -6/Proximity Caves | Entered Factory 11237 | -6/Factory | Evolved 2 slots: Power x1, Utility x1 11238 | -6/Factory | Identified exit to Factory 11238 | -6/Factory | Identified exit to Lower Caves 11540 | -6/Factory | Lost 6 parts (1n3u2w) 11587 | -6/Factory | Search patrols dispatched 11818 | -6/Factory | Lost 3 parts (1n2w) 11919 | -6/Factory | Lost 3 parts (1p1n1u) 11993 | -6/Factory | Discovered exit to Factory (range 12) 12147 | -6/Factory | Lost 4 parts (1p1n1u1w) 12287 | -6/Factory | First assault squad dispatched 12326 | -6/Factory | Build established: Scavenger-Tank 12358 | -6/Factory | Discovered exit to Factory (range 15) 12390 | -6/Factory | Entered another Factory area 12390 | -5/Factory | Evolved 2 slots: Propulsion x1, Utility x1 12698 | -5/Factory | Build established: Scavenger-Gunner 12754 | -5/Factory | Fabricated Hvy. Phase Cannon (x2) 12855 | -5/Factory | Identified exit to Upper Caves 12855 | -5/Factory | Identified exit to Extension 13011 | -5/Factory | Lost 3 parts (2u1w) 13208 | -5/Factory | Entered Extension 13336 | -5/Extension | Rescued a captive Derelict 13525 | -5/Extension | Rescued a captive Derelict 13526 | -5/Extension | Rescued a captive Derelict 13939 | -5/Extension | Spotted B-75 Beast 13963 | -5/Extension | Spotted B-75 Beast 13964 | -5/Extension | Destroyed B-75 Beast 13996 | -5/Extension | Lost 4 allies 14036 | -5/Extension | Destroyed B-75 Beast 14058 | -5/Extension | Disrupted transfer network 14061 | -5/Extension | Lost 18 parts (2p6n4u6w) 14106 | -5/Extension | Core integrity fell below 50% 14161 | -5/Extension | Destroyed 10 combat bots 14169 | -5/Extension | Lost 6 parts (4u2w) 14222 | -5/Extension | Rescued a captive Derelict 14329 | -5/Extension | Rescued a captive Derelict 14353 | -5/Extension | Rescued a captive Derelict 14354 | -5/Extension | Rescued a captive Derelict 14549 | -5/Extension | Build established: Scavenger-Mutant 15119 | -5/Extension | Discovered new exit (range 10) 15122 | -5/Extension | Discovered new exit (range 6) 15634 | -5/Extension | Rescued a captive Derelict 15826 | -5/Extension | Entered Cetus 15826 | -5/Cetus | Accompanied by 10 allies 15859 | -5/Cetus | Spotted Cetus Guard 15859 | -5/Cetus | Spotted Cetus Guard 15859 | -5/Cetus | Allies destroyed Cetus Guard 15861 | -5/Cetus | Spotted Cetus Guard 15861 | -5/Cetus | Spotted Cetus Guard 15863 | -5/Cetus | Allies destroyed Cetus Guard 15865 | -5/Cetus | Destroyed Cetus Guard 15868 | -5/Cetus | Destroyed Cetus Guard 16060 | -5/Cetus | Discovered new exit (range 16) 16086 | -5/Cetus | Spotted Cetus Guard 16087 | -5/Cetus | Spotted Cetus Guard 16089 | -5/Cetus | Spotted Cetus Guard 16092 | -5/Cetus | Spotted Cetus Guard 16094 | -5/Cetus | Destroyed Cetus Guard 16094 | -5/Cetus | Destroyed Cetus Guard 16095 | -5/Cetus | Allies destroyed Cetus Guard 16099 | -5/Cetus | Allies destroyed Cetus Guard 16116 | -5/Cetus | Discovered new exit (range 15) 16124 | -5/Cetus | Met Revision 17 16182 | -5/Cetus | Build established: Scavenger-Gunner 16224 | -5/Cetus | Entered Archives 16224 | -5/Archives | Accompanied by 7 allies 16304 | -5/Archives | Discovered new exit (range 14) 16314 | -5/Archives | Lost 4 allies 16400 | -5/Archives | Discovered new exit (range 15) 16415 | -5/Archives | Discovered new exit (range 16) 16457 | -5/Archives | Entered Factory 16457 | -4/Factory | Accompanied by 2 allies 16457 | -4/Factory | Evolved 2 slots: Propulsion x1, Utility x1 16510 | -4/Factory | Found Quantum Capacitor 16691 | -4/Factory | Garrison activated, responded to threat 17229 | -4/Factory | Lost 4 parts (2u2w) 17242 | -4/Factory | Destroyed 10 combat bots 17374 | -4/Factory | Discovered new exit (range 8) 17386 | -4/Factory | Entered Research 17386 | -3/Research | Evolved 2 slots: Utility x2 17586 | -3/Research | Revision forces began assault on 0b10 17615 | -3/Research | Met up with Revision 17++ 17926 | -3/Research | Build established: Scavenger-Mutant 18086 | -3/Research | Research terminal network offline 18184 | -3/Research | Spotted Executioner 18186 | -3/Research | Spotted Striker 18200 | -3/Research | Destroyed Striker 18217 | -3/Research | Destroyed Executioner 18242 | -3/Research | Lost 9 parts (4n1u4w) 18311 | -3/Research | Spotted Striker 18313 | -3/Research | Spotted Executioner 18340 | -3/Research | Core integrity fell below 50% 18348 | -3/Research | Core integrity fell below 20% 18352 | -3/Research | Destroyed by G-67 Veteran with Plasma Rifle Last Messages --------------- 18335_ Slug penetrates Wall. 18336_ Plasma Rifle destroyed. 18336_ Adv. Cryofiber Web destroyed. 18337_ Striker Centrium Light Armor Plating severed. 18338_ Slug penetrates G-67 Veteran. 18338_ Med. Treads destroyed. 18338_ Penetrated by Slug. 18338_ Slug penetrates Wall. 18339_ The unstable cave ceiling collapses. 18341_ Penetrated by Slug. 18341_ Adv. Thermal Shield destroyed. 18343_ Imp. Hacking Suite destroyed. 18344_ Quantum Capacitor destroyed. 18346_ Penetrated by Slug. 18346_ Slug penetrates Wall. 18347_ Com. Wheel destroyed. 18347_ Penetrated by Slug. 18348_ Destroyed Exp. Reaction Control System. 18350_ Plasma Sword destroyed. 18351_ Huge Storage Unit destroyed. Map ----- +----------------------------------------------------+ | ?????????????????????????????????????????????????? | | ?????????????????????????????????????????????????? | | ?????????????????????????????????????????????????? | | ?????????????????????????????????????????????????? | | ?????????????????????????????????????????????????? | | ?????????????????????????????????????????????????? | | ?????????????????????????????????????????????????? | | ?????????????????????????????????????????????????? | | ?????????????????????????????????????????????????? | | ?????????????????????????????????????????????????? | | ??????????????????????? ?????????????????????????? | | ????????????????????? ?????????????????????????? | | ???????????????????+ ?????????????????????????? | | ???????????????????# ????"????????????????????? | | ?????????????? ???# ??? ?? ? ??????????????? | | ??????????????? ??# ??? ?? ???????#????????? | | ???????????????? ?# ???#+###????????????????? | | ????????????????#;## ??## #;#???#?#??????????? | | ?????????#???#???# # ?## ?????????????????? | | ??#??????????????##; ? # #?????????????????? | | ???????????????????# # # #?????#???????????? | | ???????????????#???# # ##????????????????? | | ???????????????????# ##?#????#?????#?#?# | | ??########??######## ##############???? | | ??# #??# # !%= ! #???? | | ??# #??# # =@= * #???? | | ??# #?## # lKgE %! #???? | | ??# #??# # [ ! ; ! #???? | | ??? #???? # # [%% =%% #???? | | ????? ##?? ?? # hgA ====#####;;;""""##???? | | #???###/###??#?###+# g "=% #? "???? | | ???## ##???# ^""" = # "???? | | ????# T" ###### ^ # ????? | | ????# "" %= + ""T""??? ????? | | ????# ###### % # """"" ????##?? | | ????# #????# # ???????? | | ????## ##????## %[ =%! #? ?????? | | ?????# ######## %= %[ % !%####?##########????? | | ???# # %#=! !|% ;#+######???#?????????? | | ?????# / % %# %= # #?#?????#?????? | | ?????# # = !+% * # #?????????????? | | ?????# # = # # #?????????#???? | | ###### # %!## # #?????????????? | | # % ## + ! #?????????????? | | #########+####### #########?????????????? | | #### # #?????????????????????? | | #######+##"# # #????? ??????##???????? | | ???# #???? ????????????????? | | ???# ! * # # ????????????????????? | | ???# [% + + ????????????????????? | +----------------------------------------------------+ Best States ------------- Heat Dissipation 86 Coolant Potential 50 Energy Generation 45 Energy Capacity 600 Matter Stores 300 Matter Capacity 300 Sight Range 16 Terrain Scan Range 16 Terrain Scan Density 10 Base Temperature (-) 200 EM Shielding 3 Armor Coverage 1350 Resistance: TH 25 Evasion (%) 40 Targeting Accuracy 8 Recoil Reduction 6 Kinecelleration 40 Offensive Hacking 22 Item Schematics ----------------- Huge Storage Unit | -10/Materials | Hacked Lgt. Treads | -9/Materials | Scanalyzed Powered Armor | -8/Materials | Scanalyzed Hvy. Armor Plating | -8/Materials | Scanalyzed Phase Cannon | -7/Zion | Archive Recalibrator | -7/Zion | Archive Adv. Assault Cannon | -7/Zion | Archive Lgt. Angular Momentum Engine | -7/Zion | Archive Lance | -7/Zion | Archive Hvy. Missile Launcher | -7/Zion | Archive Adv. Sensor Array | -7/Zion | Archive Gauss Cannon | -7/Zion | Archive Thermic Laser | -7/Zion | Archive Arc Projector | -7/Zion | Archive Adv. Melee Analysis Suite | -7/Zion | Archive Gauss Rifle | -7/Zion | Archive EM Disruption Field | -7/Zion | Archive Coolant Injector | -7/Zion | Archive Hvy. Phase Cannon | -7/Zion | Archive Riot Gun | -7/Zion | Free Battle Cannon | -7/Zion | Free Ripper | -7/Zion | Free Adv. Targeting Computer | -6/Factory | Scanalyzed Robot Schematics ------------------ B-48 Gladiator | -7/Zion | Archive P-60 Hacker | -7/Zion | Archive H-55 Commando | -7/Zion | Archive Y-72 Warden | -7/Zion | Archive Fabricated ------------ Hvy. Phase Cannon | x2 | -5/Factory Alien Tech Used ----------------- None Achievements -------------- None Challenges ------------ None Game ------ Seed ArmorRiotDisintegrator Manual? 0 Play Time 03:34:41 Cumulative 60.5 hours Start 2025.05.02 @ 18:28:19 End 2025.05.04 @ 14:51:52 Sessions 5 Manual Loads 0 Difficulty Rogue Special Mode None Game No. 29 Rogue 29 Adventurer 0 Explorer 0 Win Type - Total 1 Types 1/0/0/0/0/0/0/0/0 Lore% 35 Gallery% 54 Achievement% 44 Wizard Run 0 Options --------- Layout 0 ASCII 0 Keyboard 0 Movement Vi Keybinds 0 Fullscreen 1 Font 24/Tamsyn Map View 76x50 Zoom Use 0% Tactical HUD 1 Map Filters NONE Filters NONE Steam 1 RUN: 5325d4e8-c894-46f4-abb2-bdfdb0d23b15